Cogmind - Beta 14 @@@ ROGUE MODE // 2025.03.03 @ 19:23:53 Player: King Of Bel Result: Destroyed by G-47 Trooper with Particle Gun Performance ------------- Evolutions (2) 1000 Regions Visited (5) 1000 Robots Destroyed (43) 215 Value Destroyed (1248) 1248 Prototype IDs (2) 40 Alien Tech Used (0) 0 Bonus (184) 184 TOTAL SCORE: 3687 Bonus ------- Follower Combat Kills 184 Cogmind --------- Core Integrity 0/550 Matter 286/300 Energy 98/100 System Corruption 2% Temperature Cool (9) Movement Core (150) Ox2 Location -8/Materials Parts ------- > --- POWER (1) -------- (None) > --- PROPULSION (4) --- (None) > --- UTILITY (4) ------ Improved Signal Interpreter Advanced Targeting Computer > --- WEAPON (2) ------- Great Maul Great Maul > --- INVENTORY (5) ---- Light Ion Engine Light Nuclear Core High-capacity Matter Pod (200) Mining Laser Peak State ------------ > --- POWER ------------ Light Nuclear Core > --- PROPULSION ------- Light Treads Advanced Treads Titanium Leg > --- UTILITY ---------- Improved Heat Sink Improved Signal Interpreter Advanced Targeting Computer Advanced Targeting Computer > --- WEAPON ----------- Beam Rifle Ion Cannon > --- INVENTORY -------- Light Ion Engine Light Nuclear Core High-capacity Matter Pod Mining Laser [Rating: 27] Favorites ----------- Power Light Nuclear Core Engine Light Ion Engine Power Core Light Nuclear Core Propulsion Light Treads Treads Light Treads Leg Titanium Leg Wheel Compact Wheel Hover Unit Airjet Flight Unit Flight Unit Utility Advanced Targeting Computer Device Improved Heat Sink Storage Small Storage Unit Processor Advanced Targeting Computer Protection Improved Light Armor Plating Weapon Light Assault Rifle Energy Gun Particle Gun Energy Cannon Ion Cannon Ballistic Gun Light Assault Rifle Special Weapon Plasma Cutter Impact Weapon Great Maul Build | -11 -10 -10 -9 -9 -8 ------- Run | Yrd Mat Min Mat Sto Mat Slots Evolved 4 | . . . 2 . 2 Power . | . . . . . . Propulsion 2 | . . . 1 . 1 Utility 2 | . . . 1 . 1 Weapon . | . . . . . . Parts Attached 55 | 6 11 . 4 9 25 Power 11 | 1 5 . . 2 3 Engine 8 | 1 4 . . 2 1 Core 3 | . 1 . . . 2 Reactor . | . . . . . . Propulsion 18 | 2 2 . 3 4 7 Treads 8 | . 1 . 3 2 2 Leg 1 | . . . . . 1 Wheel 4 | 2 1 . . . 1 Hover 3 | . . . . . 3 Flight 2 | . . . . 2 . Utility 8 | 1 1 . 1 . 5 Device 2 | . . . . . 2 Storage 1 | 1 . . . . . Processor 4 | . 1 . 1 . 2 Hackware . | . . . . . . Protection 1 | . . . . . 1 Artifact . | . . . . . . Weapon 18 | 2 3 . . 3 10 Energy Gun 4 | 1 1 . . 1 1 Energy Cannon 3 | . . . . . 3 Ballistic Gun 6 | 1 2 . . 2 1 Ballistic Cannon . | . . . . . . Launcher . | . . . . . . Special Weapon 3 | . . . . . 3 Impact Weapon 2 | . . . . . 2 Slashing Weapon . | . . . . . . Piercing Weapon . | . . . . . . Special Melee Weapon . | . . . . . . Unidentified Prototypes . | . . . . . . Parts Lost 30 | . 2 . 1 10 17 Power 3 | . . . . 2 1 Propulsion 13 | . 1 . 1 5 6 Utility 4 | . . . . . 4 Weapon 10 | . 1 . . 3 6 Highest Loss Streak 7 | . 2 . 1 6 7 To Critical Strikes . | . . . . . . Average Slot Usage (%) 84 | . 91 100 88 91 74 Engine 4 | . 8 . . 4 3 Core 5 | . 5 14 11 4 5 Treads 11 | . 8 14 11 26 4 Leg 2 | . . . . . 7 Wheel 7 | . 17 14 11 . 1 Hover 1 | . . . . . 5 Storage 7 | . 14 14 11 11 . Processor 18 | . 7 14 22 22 25 Protection 1 | . . . . . 3 Energy Gun 8 | . 13 14 11 6 4 Energy Cannon 3 | . . . . . 8 Ballistic Gun 9 | . 14 14 11 13 2 Peak Build Rating 27 | 6 10 10 14 14 27 Average Rating 13 | 4 7 10 12 11 21 On Entrance 7 | . 6 10 10 14 5 Naked Turns . | . . . . . . Heaviest Build 20 | 11 14 14 14 14 20 Greatest Support 60 | 32 32 10 60 60 42 Greatest Overweight (x) 4 | . 1 1 1 4 4 Average Overweight (x) . | . . 1 . . . Largest Inventory Capacity 8 | 8 8 8 8 8 8 Average Capacity 6 | 7 8 8 8 8 5 Most Carried 8 | 4 8 8 8 8 5 Average Carried 5 | 1 6 8 7 7 3 Final Capacity 8 | 8 8 8 8 8 5 Final Carried 8 | 4 8 8 8 5 4 Class Distribution -------------------- 60% | Mutant 39% | Scavenger-Mutant Dominant Class ---------------- Mutant | -10/Materials Scavenger-Mutant | -10/Mines Scavenger-Mutant | -9/Materials Scavenger-Mutant | -9/Storage Mutant | -8/Materials Resources | -11 -10 -10 -9 -9 -8 ----------- Run | Yrd Mat Min Mat Sto Mat Matter Collected 1050 | 212 262 93 48 210 225 Remotely . | . . . . . . Salvage Created 1470 | . 291 . . 299 880 Parts 80 | . 20 . . 17 43 Haulers Intercepted . | . . . . . . Recyclers Shooed 3 | . . 1 . 1 1 Parts Field Recycled . | . . . . . . Retrieved Matter . | . . . . . . Parts Self-Destructed . | . . . . . . Prevented . | . . . . . . Kills | -11 -10 -10 -9 -9 -8 ------- Run | Yrd Mat Min Mat Sto Mat Combat Hostiles Destroyed 40 | . 10 . . 11 19 Guns 27 | . 10 . . 11 6 Cannons 12 | . . . . . 12 Classes Destroyed 7 | . 3 . . 1 3 Worker 1 | . 1 . . . . Builder 1 | . . . . . 1 Watcher 1 | . . . . . 1 Swarmer 16 | . 6 . . 6 4 Grunt 19 | . 4 . . 4 11 Brawler 1 | . . . . . 1 Sentry 4 | . . . . 1 3 Best Kill Streak 6 | . 3 . . 2 6 Combat Bots Only 5 | . 3 . . 2 5 Max Kills in Single Turn 1 | . 1 . . 1 1 Gunslinging . | . . . . . . Exploded . | . . . . . . Melee . | . . . . . . Uniques/NPCs Destroyed . | . . . . . . Combat | -11 -10 -10 -9 -9 -8 -------- Run | Yrd Mat Min Mat Sto Mat Hostile Shots Fired 468 | . 95 . 10 174 189 Missed 127 | . 29 . 4 48 46 Damage Taken 4376 | . 729 . 92 1332 2223 Core 1029 | . 160 . 14 300 555 Absorbed by Shields . | . . . . . . Core Remaining (%) 52 | 100 . 36 . 21 . Volleys Fired 167 | . 52 2 4 44 65 Largest 2 | . 2 2 2 2 2 Hottest 116 | . 85 85 85 85 116 Shots Fired 307 | . 97 4 8 88 110 Gun 247 | . 97 4 8 88 50 Cannon 50 | . . . . . 50 Launcher . | . . . . . . Special 10 | . . . . . 10 Kinetic 146 | . 57 2 4 67 16 Thermal 161 | . 40 2 4 21 94 Explosive . | . . . . . . Electromagnetic . | . . . . . . Robot Hit Streak 22 | . 6 3 7 8 22 Robot Miss Streak 6 | . 4 1 1 6 3 Penetration Max . | . . . . . . Secondary Targets 4 | . 1 . . 3 . Max Gunslinging Chain 1 | . 1 . . 1 . Shots Hit Robots 190 | . 48 3 7 53 79 Core Hits 81 | . 20 1 1 19 40 Critical Kills . | . . . . . . Critical Parts Destroyed 1 | . . . . . 1 Critical Strikes 8 | . 1 . . 2 5 Burn 5 | . 1 . . 2 2 Smash 1 | . . . . . 1 Sever 2 | . . . . . 2 Melee Attacks 6 | . . . . . 6 Impact 6 | . . . . . 6 Slashing . | . . . . . . Piercing . | . . . . . . Sneak Attacks . | . . . . . . Combat Hostiles . | . . . . . . Follow-up Attacks 1 | . . . . . 1 Damage Inflicted 2992 | . 611 34 85 621 1641 Guns 1811 | . 611 34 73 613 480 Cannons 852 | . . . . . 852 Explosions . | . . . . . . Melee 193 | . . . . . 193 Ramming 70 | . . . 12 8 50 Kinetic 937 | . 323 20 27 389 178 Thermal 1792 | . 288 14 46 224 1220 Explosive . | . . . . . . Electromagnetic . | . . . . . . Impact 193 | . . . . . 193 Slashing . | . . . . . . Piercing . | . . . . . . Highest Corruption 2 | . . . . . 2 Average Corruption 2 | . . . . . 2 Corruption Purged . | . . . . . . Corruption Blocked . | . . . . . . Effects 6 | . . . . . 6 Message Errors 2 | . . . . . 2 Matter Fused 1 | . . . . . 1 Energy Discharges 2 | . . . . . 2 Data Loss (major) 1 | . . . . . 1 Overload Shots . | . . . . . . Overflow Damage 72 | . . . . . 72 Projectiles 24 | . . . . . 24 Explosions . | . . . . . . Melee 48 | . . . . . 48 Knockbacks . | . . . . . . Impact . | . . . . . . Kinetic . | . . . . . . Secondary . | . . . . . . Self-Inflicted Damage 26 | . . . 6 3 17 Shots . | . . . . . . Rammed 16 | . . . 1 5 10 Targets Rammed 16 | . . . 1 5 10 Kicked . | . . . . . . Crushed . | . . . . . . Highest Temperature 517 | . 517 48 111 312 483 Average Temperature 136 | . 165 28 47 118 137 Received Heat Transfer 1995 | . 309 . 27 417 1242 Effects 19 | . 7 . . . 12 Shutdowns 4 | . 2 . . . 2 Energy Bleed 2 | . 2 . . . . Interference 8 | . 2 . . . 6 Matter Decay 1 | . 1 . . . . Damage (major) 4 | . . . . . 4 Siege Activations . | . . . . . . Robots Corrupted 1 | . . . . . 1 Combat Hostiles 1 | . . . . . 1 Parts Fried . | . . . . . . Impact Corruptions 2 | . . . . . 2 Robots Melted . | . . . . . . Combat Hostiles . | . . . . . . Parts Melted 9 | . 1 . . 3 5 Heat Transferred 4110 | . 743 37 111 703 2516 Parts Sabotaged . | . . . . . . Parts Stolen . | . . . . . . Parts Stripped . | . . . . . . Power Chain Reactions . | . . . . . . Alert | -11 -10 -10 -9 -9 -8 ------- Run | Yrd Mat Min Mat Sto Mat Peak Influence 350 | . 256 103 93 329 350 Initial 45 | . . 45 39 39 39 Average 151 | . 137 78 27 153 197 Maximum Alert Level 1 | . 1 . . 1 1 Low Security (%) 67 | 100 72 100 100 68 51 Level 1 32 | . 27 . . 31 48 Level 2 . | . . . . . . Level 3 . | . . . . . . Level 4 . | . . . . . . Level 5 . | . . . . . . High Security . | . . . . . . Max Security . | . . . . . . Squads Dispatched 7 | . . . . 4 3 Investigation 2 | . . . . 1 1 Extermination . | . . . . . . Reinforcement 4 | . . . . 2 2 Assault . | . . . . . . Garrison 1 | . . . . 1 . Intercept . | . . . . . . Searches Triggered . | . . . . . . Construction Impeded . | . . . . . . Haulers Reinforced . | . . . . . . Active Scanning Responses . | . . . . . . Cargo Convoy Interrupts . | . . . . . . Stealth | -11 -10 -10 -9 -9 -8 --------- Run | Yrd Mat Min Mat Sto Mat Distress Signals 3 | . 1 . . 1 1 Communications Jammed . | . . . . . . Distress Signals . | . . . . . . Times Spotted 83 | . 16 2 4 26 35 Peak Tracking Total 10 | . 4 2 3 10 6 Tactical Retreats 6 | . 1 . . 2 3 Traps | -11 -10 -10 -9 -9 -8 ------- Run | Yrd Mat Min Mat Sto Mat Traps Triggered 2 | . . . . 1 1 Indirectly . | . . . . . . Trap Hack Attempts . | . . . . . . Triggered . | . . . . . . Disarmed . | . . . . . . Reprogrammed . | . . . . . . Reused . | . . . . . . Traps Extracted . | . . . . . . Installed . | . . . . . . Triggered . | . . . . . . Machines | -11 -10 -10 -9 -9 -8 ---------- Run | Yrd Mat Min Mat Sto Mat Machines Disabled 1 | . . . . . 1 Max in Single Turn 1 | . . . . . 1 Machines Repaired . | . . . . . . Machines Dismantled . | . . . . . . Machines Sabotaged . | . . . . . . Overloaded Fab Kills . | . . . . . . Hacking | -11 -10 -10 -9 -9 -8 --------- Run | Yrd Mat Min Mat Sto Mat Machines Accessed 9 | . 6 . 1 1 1 Terminals 8 | . 5 . 1 1 1 Fabricators . | . . . . . . Repair Stations . | . . . . . . Recycling Units 1 | . 1 . . . . Scanalyzers . | . . . . . . Garrison Access . | . . . . . . Total Hacks 20 | . 13 . 4 1 2 Successful 10 | . 5 . 3 1 1 Failed 10 | . 8 . 1 . 1 Catastrophic 1 | . 1 . . . . Database Lockouts . | . . . . . . Manual 1 | . . . . . 1 Terminals 19 | . 12 . 4 1 2 Fabricators . | . . . . . . Repair Stations . | . . . . . . Recycling Units 1 | . 1 . . . . Scanalyzers . | . . . . . . Garrison Access . | . . . . . . Terminal Hacks 10 | . 5 . 3 1 1 Record 2 | . . . 1 . 1 Prototype ID Bank 1 | . 1 . . . . Branch Access Points 1 | . 1 . . . . Emergency Access Points 1 | . . . . 1 . Alert Level 1 | . 1 . . . . Unreport Threat 1 | . . . 1 . . Locate Traps 1 | . 1 . . . . Hauler Manifests 1 | . . . 1 . . Zone Layout 1 | . 1 . . . . Fabricator Hacks . | . . . . . . Repair Station Hacks . | . . . . . . Recycling Unit Hacks . | . . . . . . Scanalyzer . | . . . . . . Garrison Access Hacks . | . . . . . . Unauthorized Hacks . | . . . . . . Terminals . | . . . . . . Fabricators . | . . . . . . Repair Stations . | . . . . . . Recycling Units . | . . . . . . Scanalyzers . | . . . . . . Garrison Access . | . . . . . . Data Cores Recovered 1 | . . . . 1 . Used . | . . . . . . Hacking Detections 5 | . 3 . 1 . 1 Full Trace Events 1 | . . . 1 . . Feedback Events . | . . . . . . Feedback Blocked . | . . . . . . Robot Schematics Acquired . | . . . . . . Robots Built . | . . . . . . Authchips . | . . . . . . Time . | . . . . . . Total Robot Build Rating . | . . . . . . Part Schematics Acquired . | . . . . . . Parts Built . | . . . . . . Authchips . | . . . . . . Time . | . . . . . . Total Part Build Rating . | . . . . . . Parts Repaired . | . . . . . . Time . | . . . . . . Parts Recycled . | . . . . . . Recycled Matter . | . . . . . . Retrieved Matter . | . . . . . . Retrieved Components . | . . . . . . Parts Scanalyzed . | . . . . . . Part Schematics Acquired . | . . . . . . Parts Damaged . | . . . . . . Bothacking | -11 -10 -10 -9 -9 -8 ------------ Run | Yrd Mat Min Mat Sto Mat Used RIF Installer . | . . . . . . Robots Hacked . | . . . . . . Non-combat . | . . . . . . Combat . | . . . . . . Robot Hacks Applied . | . . . . . . Relay Couplers Released . | . . . . . . Fabnet Peak Effective % . | . . . . . . Robots Rewired . | . . . . . . Allies Hacked . | . . . . . . Hacks Repelled . | . . . . . . Allies | -11 -10 -10 -9 -9 -8 -------- Run | Yrd Mat Min Mat Sto Mat Total Allies 3 | . . 3 . . . Largest Group 3 | . . 3 3 2 . Highest-Rated Group 40 | . . 40 40 32 . Highest-Rated Ally 16 | . . 16 16 16 . Total Orders . | . . . . . . Ally Attacks 31 | . . 11 12 8 . Total Damage 328 | . . 114 120 94 . Kills 7 | . . 2 3 2 . Allies Corrupted . | . . . . . . Allies Melted . | . . . . . . Intel | -11 -10 -10 -9 -9 -8 ------- Run | Yrd Mat Min Mat Sto Mat Robot Analysis Total . | . . . . . . Derelict Logs Recovered . | . . . . . . Drone Launches . | . . . . . . Drone Recoveries . | . . . . . . Exploration | -11 -10 -10 -9 -9 -8 ------------- Run | Yrd Mat Min Mat Sto Mat Turns Passed 2088 | 60 643 48 125 433 779 Spaces Moved 1305 | 49 457 44 107 281 367 Core 48 | 2 . . . 15 31 Treads 300 | . 40 . 9 142 109 Legs 43 | . . . . . 43 Wheels 628 | 47 417 44 98 . 22 Hover 162 | . . . . . 162 Flight 124 | . . . . 124 . Fastest Speed 37 | 50 95 95 95 37 66 Average Speed 113 | 97 103 95 100 104 140 Slowest Speed 250 | 100 160 95 160 250 250 Overloaded Moves . | . . . . . . Propulsion Burnouts . | . . . . . . Robots Hopped . | . . . . . . Cave-ins Triggered . | . . . . . . Exploration Rate (%) 30 | 3 61 12 15 55 36 Regions Visited 5 Branch Regions 2 Pre-discovered Areas . | . . . . . . Known Exits Taken 1 | . 1 . . . . Unknown Exits Taken 4 | 1 . 1 1 1 . Scrap Searched . | . . . . . . Spaces Dug . | . . . . . . Terrain Destroyed 4 | . . . . . 4 Melee . | . . . . . . Projectile 4 | . . . . . 4 AOE . | . . . . . . Terrain Rammed . | . . . . . . Walls Destroyed . | . . . . . . Machines Disabled . | . . . . . . Actions | -11 -10 -10 -9 -9 -8 --------- Run | Yrd Mat Min Mat Sto Mat Total 1580 | 58 534 46 116 343 483 Wait 6 | . 1 1 . . 4 Move 1300 | 48 456 43 106 280 367 Hop . | . . . . . . Pick Up 13 | 4 6 . . 1 2 Fast Attach 28 | 6 3 . 3 . 16 Attach 11 | . 1 . 1 4 5 Detach 3 | . 1 . 1 . 1 Swap 16 | . 7 . . 5 4 Drop 15 | . 7 . . 4 4 Fire 167 | . 52 2 4 44 65 Melee 5 | . . . . . 5 Ram 13 | . . . 1 4 8 Kick . | . . . . . . Crush 3 | . . . . 1 2 Escape Stasis . | . . . . . . Rewire . | . . . . . . Trap . | . . . . . . Miscellaneous . | . . . . . . Route ------- -11/Scrapyard -10/Materials (discovered 3 exits: *Mat x2 / *Min) -10/Mines -9/Materials -9/Storage -8/Materials History --------- Turn | Location | Event 40 | -11/Scrapyard | Discovered new exit (range 14) 61 | -11/Scrapyard | Entered Materials 157 | -10/Materials | Discovered new exit (range 15) 284 | -10/Materials | Core integrity fell below 50% 328 | -10/Materials | Build established: Mutant 534 | -10/Materials | Discovered new exit (range 16) 536 | -10/Materials | Identified exit to Mines 704 | -10/Materials | Entered Mines 709 | -10/Mines | Assisted by bots powering up and referring to "LRC-V3" 730 | -10/Mines | Discovered new exit (range 10) 752 | -10/Mines | Entered Materials 752 | -9/Materials | Accompanied by 3 allies 752 | -9/Materials | Evolved 2 slots: Propulsion x1, Utility x1 835 | -9/Materials | Discovered new exit (range 7) 854 | -9/Materials | Build established: Scavenger-Mutant 877 | -9/Materials | Entered Storage 877 | -9/Storage | Accompanied by 2 allies 1218 | -9/Storage | Garrison activated, responded to threat 1240 | -9/Storage | Core integrity fell below 50% 1276 | -9/Storage | Lost 6 parts (1p3n2w) 1297 | -9/Storage | Discovered new exit (range 16) 1310 | -9/Storage | Entered Materials 1310 | -8/Materials | Evolved 2 slots: Propulsion x1, Utility x1 1334 | -8/Materials | Lost 3 parts (2n1w) 1519 | -8/Materials | Build established: Mutant 1659 | -8/Materials | Lost 3 parts (1n1u1w) 2003 | -8/Materials | Lost 3 parts (1u2w) 2070 | -8/Materials | Core integrity fell below 50% 2085 | -8/Materials | Core integrity fell below 20% 2089 | -8/Materials | Destroyed by G-47 Trooper with Particle Gun Last Messages --------------- 02044_ Imp. Heat Sink destroyed. 02054_